bitfinex-derivatives/quotes_ETHF0:USTF0_20260221
["timestamp","ask_amount","ask_price","bid_price","bid_amount"]
[1771676993251,4.2187162,1971.8,1970.9,1.63300019]
[1771676993744,4.2187162,1971.7,1970.9,1.63300019]
[1771676995750,4.2187162,1971.8,1970.9,1.63300019]
[1771676996046,4.2187162,1971.8,1971.1,1.61046976]
[1771676999952,7.93728841,1971.9,1971.1,1.61046976]
[1771677000153,4.22726983,1971.8,1971.1,1.61046976]
[1771677000348,4.22726983,1971.7,1971.1,1.61046976]
[1771677001251,5.87462721,1971.7,1971.1,1.61046976]
[1771677004557,4.22726983,1971.7,1971.1,1.61046976]
[1771677004757,4.22726983,1971.9,1971.2,1.58625386]
[1771677005752,1.64735738,1971.8,1971.2,1.58625386]
[1771677005955,5.87462721,1971.8,1971.2,1.58625386]
[1771677007056,1.64735738,1971.8,1971.2,1.58625386]
[1771677007260,5.87462721,1971.8,1971.2,1.58625386]
[1771677007662,1.64735738,1971.6,1971.2,1.58625386]
[1771677007959,2.39591277,1971.4,1970.9,1.16181039]
[1771677008359,6.28993103,1971.9,1971.2,1.16181039]
[1771677008360,1.16489672,1971.8,1971.2,1.16181039]
[1771677009361,5.39216655,1971.9,1971.2,1.16181039]
[1771677009960,1.23278065,1971.8,1971.2,1.16181039]
[1771677013166,2.88013803,1971.8,1971.2,1.16181039]
[1771677013665,1.23278065,1971.7,1971.2,1.16181039]
[1771677015167,2.88013803,1971.8,1971.2,1.16181039]
[1771677022068,1.23278065,1971.7,1971.0,1.20614847]
[1771677022469,1.64735738,1971.4,1971.0,1.20614847]
[1771677022673,1.23278065,1971.3,1971.0,1.20614847]
[1771677024772,2.88013803,1971.4,1971.0,1.20614847]
[1771677025176,1.23278065,1971.3,1971.0,1.20614847]
[1771677027376,2.88013803,1971.4,1971.0,1.20614847]
[1771677028273,1.23278065,1971.3,1971.0,1.20614847]
[1771677028576,2.88013803,1971.4,1971.0,1.20614847]
[1771677032477,1.23278065,1971.6,1971.0,1.20614847]
[1771677032674,1.23278065,1971.9,1971.2,1.20614847]
[1771677033078,2.88013803,1971.9,1971.2,1.20614847]
[1771677033277,1.23278065,1971.8,1971.2,1.20614847]
[1771677033976,1.23278065,1971.8,1970.7,6.36262829]
[1771677033977,1.64735738,1971.3,1970.7,0.00628327]
[1771677034170,1.64735738,1971.0,1970.7,0.00628327]
[1771677034375,1.73966791,1970.8,1970.0,1.20614847]
[1771677034778,0.09231053,1970.8,1970.0,1.20614847]
[1771677035082,0.09231053,1971.2,1970.4,1.20614847]
[1771677035279,0.09621439,1971.2,1970.4,1.21196984]
[1771677036075,0.00390386,1971.2,1970.8,1.20614847]
[1771677037182,1.70930191,1971.6,1970.9,1.20614847]
[1771677038080,1.71428435,1971.6,1970.9,1.20614847]
[1771677043681,1.64735738,1971.4,1970.9,1.20614847]
[1771677043886,1.64735738,1971.5,1970.9,1.20614847]
[1771677046785,0.00498244,1971.6,1970.9,1.20614847]
[1771677049191,0.25369,1971.5,1970.6,1.21559798]
[1771677049586,1.64735738,1971.2,1970.6,1.21559798]
[1771677050290,1.65233982,1971.6,1970.7,1.21559798]
[1771677050291,1.64735738,1971.4,1970.7,1.21559798]
[1771677053395,1.65233982,1971.6,1970.7,1.21559798]
[1771677055898,0.00498244,1971.6,1970.7,1.21559798]
[1771677059203,4.22599175,1971.6,1970.7,1.21559798]
[1771677060199,0.00498244,1971.6,1970.7,1.21559798]
[1771677060695,0.00498244,1971.6,1971.0,1.21559798]
[1771677063502,0.00498244,1971.6,1970.5,1.21559798]
[1771677065600,5.67183622,1971.5,1970.5,1.21559798]
[1771677065802,0.00498244,1971.6,1970.5,1.21559798]
[1771677066003,5.67181937,1971.5,1970.5,1.21559798]
[1771677066300,0.00498244,1971.6,1970.5,1.21559798]
[1771677066500,5.67181378,1971.5,1970.5,1.21559798]
[1771677066701,0.00498244,1971.6,1970.5,1.21559798]
[1771677066904,5.67185386,1971.5,1970.5,1.21559798]
[1771677067095,0.00498244,1971.6,1970.5,1.21559798]
[1771677067300,5.67188964,1971.5,1970.5,1.21559798]
[1771677067496,0.00498244,1971.6,1970.5,1.21559798]
[1771677067702,5.67187532,1971.5,1970.5,1.21559798]
[1771677067901,0.00498244,1971.6,1970.5,1.21559798]
[1771677068103,5.67182081,1971.5,1970.5,1.21559798]
[1771677068304,0.00498244,1971.6,1970.5,1.21559798]
[1771677068505,5.6718316,1971.5,1970.5,1.21559798]
[1771677068708,0.00498244,1971.6,1970.5,1.21559798]
[1771677068909,5.67183074,1971.5,1970.5,1.21559798]
[1771677069211,0.00498244,1971.6,1970.5,1.21559798]
[1771677069411,5.67182271,1971.5,1970.5,1.21559798]
[1771677069713,0.00498244,1971.6,1970.5,1.21559798]
[1771677070006,5.67182988,1971.5,1970.5,1.21559798]
[1771677070206,0.00498244,1971.6,1970.5,1.21559798]
[1771677070406,5.67183309,1971.5,1970.5,1.21559798]
[1771677070606,0.00498244,1971.6,1970.5,1.21559798]
[1771677070802,5.67183198,1971.5,1970.5,1.21559798]
[1771677071007,0.00498244,1971.6,1970.5,1.21559798]
[1771677071309,5.6718325,1971.5,1970.5,1.21559798]
[1771677071508,0.00498244,1971.6,1970.5,1.21559798]
[1771677071710,5.67183011,1971.5,1970.5,1.21559798]
[1771677071910,0.00498244,1971.6,1970.5,1.21559798]
[1771677072110,5.67183137,1971.5,1970.5,1.21559798]
[1771677072311,0.00498244,1971.6,1970.5,1.21559798]
[1771677072610,5.67189646,1971.5,1970.5,1.21559798]
[1771677072811,0.00498244,1971.6,1970.5,1.21559798]
[1771677073111,5.67189782,1971.5,1970.5,1.21559798]
[1771677073310,5.67189782,1971.4,1970.5,1.21559798]
[1771677073507,0.00498244,1971.6,1970.5,1.21559798]
[1771677073707,5.67196912,1971.5,1970.5,1.21559798]
[1771677074007,5.67196912,1971.4,1970.5,1.21559798]
[1771677074208,0.00498244,1971.6,1970.5,1.21559798]
[1771677074407,5.67211503,1971.5,1970.5,1.21559798]
[1771677074608,5.67211503,1971.4,1970.5,1.21559798]
[1771677074810,0.00498244,1971.6,1970.5,1.21559798]
[1771677075009,5.67211383,1971.5,1970.5,1.21559798]
[1771677075211,5.67211383,1971.4,1970.5,1.21559798]
[1771677075412,0.00498244,1971.6,1970.5,1.21559798]
[1771677075711,5.67211464,1971.5,1970.5,1.21559798]
[1771677075910,5.67211464,1971.4,1970.5,1.21559798]
[1771677076112,0.00498244,1971.6,1970.5,1.21559798]
[1771677076313,5.6721248,1971.5,1970.5,1.21559798]
[1771677076512,5.6721248,1971.4,1970.5,1.21559798]
[1771677076713,0.00498244,1971.6,1970.5,1.21559798]
[1771677077015,5.67212308,1971.5,1970.5,1.21559798]
[1771677077214,5.67212308,1971.4,1970.5,1.21559798]
[1771677077406,0.00498244,1971.6,1970.5,1.21559798]
[1771677077610,5.67216555,1971.5,1970.5,1.21559798]
[1771677077813,5.67216555,1971.4,1970.5,1.21559798]
[1771677078013,0.00498244,1971.6,1970.5,1.21559798]
[1771677078314,5.68668651,1971.5,1970.5,1.21559798]
[1771677078514,5.68668651,1971.4,1970.5,1.21559798]
[1771677078715,0.00498244,1971.6,1970.5,1.21559798]
[1771677078914,5.70125486,1971.5,1970.5,1.21559798]
[1771677079113,5.70125486,1971.4,1970.5,1.21559798]
[1771677079415,0.00498244,1971.6,1970.5,1.21559798]
[1771677079613,4.22599175,1971.6,1970.5,1.21559798]
[1771677079914,5.70132839,1971.5,1970.5,1.21559798]
[1771677087018,5.70132839,1971.4,1970.5,1.21559798]
[1771677087219,5.70132839,1971.3,1970.5,1.21559798]
[1771677087417,1.64793563,1971.5,1970.5,1.21559798]
[1771677087618,5.7037611,1971.4,1970.5,1.21559798]
[1771677087819,5.7037611,1971.3,1970.5,1.21559798]
[1771677088018,5.7037611,1971.2,1970.5,1.21559798]
[1771677088221,1.64793563,1971.5,1970.5,1.21559798]
[1771677088521,5.70388793,1971.4,1970.5,1.21559798]
[1771677088721,5.70388793,1971.3,1970.5,1.21559798]
[1771677088920,5.70388793,1971.2,1970.5,1.21559798]
[1771677089124,1.64793563,1971.5,1970.5,1.21559798]
[1771677089323,5.70402128,1971.4,1970.5,1.21559798]
[1771677089518,5.70402128,1971.3,1970.5,1.21559798]
[1771677089722,5.70402128,1971.2,1970.5,1.21559798]
[1771677089924,1.64793563,1971.5,1970.5,1.21559798]
[1771677090120,5.70402061,1971.4,1970.5,1.21559798]
[1771677090318,5.70402061,1971.3,1970.5,1.21559798]
[1771677090519,7.35195624,1971.2,1970.5,1.21559798]
[1771677090723,5.70402061,1971.1,1970.4,1.21048802]
[1771677091025,5.70402061,1971.0,1970.4,1.21048802]
[1771677091222,1.64793563,1971.2,1970.4,1.21048802]
[1771677091223,5.71585179,1970.9,1970.4,1.21048802]
[1771677091426,1.64793563,1971.2,1970.2,1.20470391]
[1771677091727,5.86894494,1971.2,1970.2,1.20470391]
[1771677091927,1.64793563,1970.9,1970.2,1.20470391]
[1771677092226,5.71514942,1970.8,1970.2,1.20470391]
[1771677092427,1.64793563,1970.9,1970.2,0.00394592]
[1771677092627,5.7103834,1970.8,1970.2,0.00394592]
[1771677092924,1.64793563,1970.9,1970.2,0.00394592]
[1771677092925,5.7103834,1970.7,1970.2,0.00394592]
[1771677093127,1.64793563,1970.8,1970.2,0.00394592]
[1771677093329,5.7056449,1970.7,1970.0,1.20219402]
[1771677093524,1.64793563,1970.8,1969.4,1.20219402]
[1771677093826,5.70573119,1970.7,1969.4,1.20219402]
[1771677094021,5.86894494,1971.0,1969.4,1.20219402]
[1771677094218,1.64793563,1970.7,1969.4,1.20664594]
[1771677096829,1.64793563,1970.4,1969.4,1.20664594]
[1771677097129,1.64793563,1970.7,1969.4,1.20664594]
[1771677097427,0.25378,1970.8,1969.6,1.20835111]
[1771677097628,4.22100931,1971.2,1969.9,1.20835111]
[1771677097926,5.70161244,1971.1,1969.9,1.20835111]
[1771677098126,5.70161244,1971.0,1969.9,1.20835111]
[1771677098329,5.86894494,1971.3,1969.9,1.20835111]
[1771677098525,5.70097679,1971.2,1969.9,1.20835111]
[1771677098829,5.70097679,1971.1,1969.9,1.20835111]
[1771677099025,5.70097679,1971.0,1969.9,1.20835111]
[1771677099227,5.86894494,1971.3,1969.9,1.20835111]
[1771677099527,5.70015823,1971.2,1969.9,1.20835111]
[1771677099717,5.70015823,1971.1,1969.9,1.20835111]
[1771677099922,5.70015823,1971.0,1969.9,1.20835111]
[1771677100129,5.86894494,1971.3,1969.9,1.20835111]
[1771677100329,5.69961952,1971.2,1969.9,1.20835111]
[1771677100525,5.69961952,1971.1,1969.9,1.20835111]
[1771677100726,5.69961952,1971.0,1969.9,1.20835111]
[1771677100926,5.69961952,1970.9,1969.9,1.20835111]
[1771677101129,5.86894494,1971.3,1969.9,1.20835111]
[1771677101430,5.69931678,1971.2,1969.9,1.20835111]
[1771677101630,5.69931678,1971.1,1969.9,1.20835111]
[1771677101830,5.69931678,1971.0,1970.2,1.21528039]
[1771677102028,0.25371,1971.4,1970.2,1.21528039]
[1771677102229,5.70040972,1971.3,1970.2,1.21528039]
[1771677102430,1.65291807,1971.6,1970.2,1.21528039]
[1771677102630,5.70082838,1971.5,1970.2,1.21528039]
[1771677102828,5.70082838,1971.4,1970.2,1.21528039]
[1771677103134,1.65291807,1971.6,1970.2,1.21528039]
[1771677103135,5.70082838,1971.3,1970.2,1.21528039]
[1771677103327,1.65291807,1971.6,1970.2,1.21528039]
[1771677103529,5.701108,1971.5,1970.2,1.21528039]
[1771677103828,5.701108,1971.4,1970.5,1.20913885]
[1771677104037,0.00498244,1971.6,1970.5,1.20913885]
[1771677104226,5.7013286,1971.5,1970.5,1.20913885]
[1771677104532,0.00498244,1971.6,1970.5,1.20913885]
[1771677104533,5.7013286,1971.4,1970.5,1.20913885]
[1771677104732,0.00498244,1971.6,1970.5,1.20913885]
[1771677104936,5.70197516,1971.5,1970.5,1.20913885]
[1771677105236,5.70197516,1971.4,1970.5,1.20913885]
[1771677105437,0.00498244,1971.6,1970.5,1.20913885]
[1771677105635,5.70247923,1971.5,1970.5,1.20913885]
[1771677105835,5.70247923,1971.4,1970.5,1.20913885]
[1771677106032,0.00498244,1971.6,1970.5,1.20913885]
[1771677106235,5.70247906,1971.5,1970.5,1.20913885]
[1771677106436,5.70247906,1971.4,1970.5,1.20913885]
[1771677106638,0.00498244,1971.6,1970.5,1.20913885]
[1771677106837,5.70302158,1971.5,1970.5,1.20913885]
[1771677107036,0.00498244,1971.6,1970.5,1.20913885]
[1771677107235,5.70395221,1971.5,1970.5,1.20913885]
[1771677107435,0.00498244,1971.6,1970.5,1.20913885]
[1771677107638,5.70396124,1971.5,1970.5,1.20913885]
[1771677107933,0.00498244,1971.6,1970.5,1.20913885]
[1771677108138,5.70395811,1971.5,1970.5,1.20913885]
[1771677108338,0.00498244,1971.6,1970.5,1.20913885]
[1771677108535,5.70433753,1971.5,1970.5,1.20913885]
[1771677108735,0.00498244,1971.6,1970.5,1.20913885]
[1771677108935,5.70433578,1971.5,1970.5,1.20913885]
[1771677109239,0.00498244,1971.6,1970.5,1.20913885]
[1771677109433,5.70473071,1971.5,1970.5,1.20913885]
[1771677109737,7.35245143,1971.4,1970.5,1.20913885]
[1771677109942,1.64793563,1971.4,1970.5,1.20913885]
[1771677111238,0.00498244,1971.6,1970.5,1.20913885]
[1771677111438,5.70556773,1971.5,1970.5,1.20913885]
[1771677111740,5.70556773,1971.4,1970.5,1.20913885]
[1771677111940,0.00498244,1971.6,1970.5,1.20913885]
[1771677112140,5.70557416,1971.5,1970.5,1.20913885]
[1771677112338,5.70557416,1971.4,1970.5,1.20913885]
[1771677112535,0.00498244,1971.6,1970.5,1.20913885]
[1771677112734,5.70613106,1971.5,1970.5,1.20913885]
[1771677112932,5.70613106,1971.4,1970.5,1.20913885]
[1771677113136,0.00498244,1971.6,1970.5,1.20913885]
[1771677113343,5.70672993,1971.5,1970.5,1.20913885]
[1771677113533,5.70672993,1971.4,1970.5,1.20913885]
[1771677113734,0.00498244,1971.6,1970.5,1.20913885]
[1771677113934,5.70672866,1971.5,1970.5,1.20913885]
[1771677114137,0.00498244,1971.6,1970.5,1.20913885]
[1771677114138,5.70672866,1971.4,1970.5,1.20913885]
[1771677114341,0.00498244,1971.6,1970.5,1.20913885]
[1771677114543,5.70733122,1971.5,1970.5,1.20913885]
[1771677114745,5.70733122,1971.4,1970.5,1.20913885]
[1771677114945,0.00498244,1971.6,1970.5,1.20913885]
[1771677115139,5.70730539,1971.5,1970.5,1.20913885]
[1771677115341,5.70730539,1971.4,1970.5,1.20913885]
[1771677115639,0.00498244,1971.6,1970.5,1.20913885]
[1771677115839,5.70791207,1971.5,1970.5,1.20913885]
[1771677116146,5.70791207,1971.4,1970.5,1.20913885]
[1771677116346,0.00498244,1971.6,1970.5,1.20913885]
[1771677116547,5.7085548,1971.5,1970.5,1.20913885]
[1771677116746,5.7085548,1971.4,1970.5,1.20913885]
[1771677116949,0.00498244,1971.6,1970.5,1.20913885]
[1771677117140,5.70855236,1971.5,1970.5,1.20913885]
[1771677117346,5.70855236,1971.4,1970.5,1.20913885]
[1771677117546,5.70855236,1971.3,1970.5,1.20913885]
[1771677117747,4.22599175,1971.6,1970.5,1.20913885]
[1771677117948,7.356759,1971.5,1970.7,1.18893374]
[1771677118148,5.70882439,1971.4,1970.7,1.18893374]
[1771677119049,5.70882439,1971.4,1970.9,1.18833508]
[1771677119250,0.00498244,1971.6,1970.9,1.19272674]
[1771677119451,7.35698256,1971.5,1970.9,1.19272674]
[1771677119652,5.70904795,1971.4,1970.9,1.19272674]
[1771677122452,0.00498244,1971.6,1971.1,1.15690865]
[1771677132253,5.7230575,1971.5,1971.1,1.15690865]
[1771677132457,0.00498244,1971.6,1971.1,1.15690865]
[1771677132659,5.72304012,1971.5,1971.1,1.15690865]
[1771677132956,0.00498244,1971.6,1971.1,1.15690865]
[1771677133158,5.72301356,1971.5,1971.1,1.15690865]
[1771677133457,0.00498244,1971.6,1971.1,1.15690865]
[1771677133657,5.72357179,1971.5,1971.1,1.15690865]
[1771677133956,0.00498244,1971.6,1971.1,1.15690865]
[1771677134153,5.72357028,1971.5,1971.1,1.15690865]
[1771677134354,0.00498244,1971.6,1971.1,1.15690865]
[1771677134552,5.72375426,1971.5,1971.1,1.15690865]
[1771677134753,0.00498244,1971.6,1971.1,1.15690865]
[1771677134955,5.72378854,1971.5,1971.1,1.15690865]
[1771677135256,0.00498244,1971.6,1971.1,1.15690865]
[1771677135458,5.72390661,1971.5,1971.1,1.15690865]
[1771677135661,0.00498244,1971.6,1971.1,1.15690865]
[1771677135957,5.72392335,1971.5,1971.1,1.15690865]
[1771677136157,0.00498244,1971.6,1971.1,1.15690865]
[1771677136349,5.72393765,1971.5,1971.1,1.15690865]
[1771677136551,0.00498244,1971.6,1971.1,1.15690865]
[1771677136756,5.72371521,1971.5,1971.1,1.15690865]
[1771677136952,0.00498244,1971.6,1971.2,1.14781535]
[1771677137153,0.25363,1972.0,1971.2,1.14781535]
[1771677137358,1.64793461,1971.8,1971.2,1.14781535]
[1771677137855,5.86894392,1972.1,1971.2,1.14781535]
[1771677138057,5.66120439,1972.0,1971.2,1.14781535]
[1771677138362,5.66120439,1971.9,1971.3,1.14799971]
[1771677138657,5.66120439,1971.8,1971.3,1.14799971]
[1771677138857,5.8746041,1972.1,1971.3,1.14799971]
[1771677138858,1.65359479,1972.1,1971.3,1.14799971]
[1771677139154,5.68207504,1972.0,1971.3,1.14799971]
[1771677139358,5.68207504,1971.9,1971.3,1.14799971]
[1771677139556,5.68207504,1971.8,1971.3,1.14799971]
[1771677139759,1.65359479,1972.1,1971.3,1.14799971]
[1771677140064,5.68111022,1972.0,1971.3,1.14799971]
[1771677140256,5.68111022,1971.9,1971.3,1.14799971]
[1771677140456,5.68111022,1971.8,1971.3,1.14799971]
[1771677140754,1.65359479,1972.1,1971.3,1.14799971]
[1771677140958,5.68092939,1972.0,1971.3,1.14799971]
[1771677141154,1.65359479,1972.1,1971.3,1.14799971]
[1771677142964,0.00566018,1972.1,1971.5,1.11815593]
[1771677144458,1.64793461,1971.9,1971.3,1.03649985]
[1771677144757,1.65359479,1972.1,1971.0,1.03649985]
[1771677144758,1.64793461,1971.7,1971.0,1.03649985]
[1771677145259,1.65359479,1972.1,1971.0,1.03649985]
[1771677145260,1.64793461,1971.5,1971.0,1.03649985]
[1771677147059,1.64793461,1971.7,1971.0,1.03649985]
[1771677148663,1.64793461,1971.5,1970.9,0.00439166]
[1771677148956,1.64793461,1971.3,1970.9,0.00439166]
[1771677150460,1.64793461,1971.5,1970.9,1.0511101]
[1771677155165,1.64793461,1971.7,1970.9,1.0511101]
[1771677155364,5.66030909,1971.6,1970.9,1.0511101]
[1771677155567,5.66030909,1971.5,1970.9,1.0511101]
[1771677155766,1.64793461,1971.7,1970.9,1.0511101]
[1771677155962,5.66043216,1971.6,1970.9,1.0511101]
[1771677156163,5.66043216,1971.5,1970.9,1.0511101]
[1771677156364,1.64793461,1971.7,1970.9,1.0511101]
[1771677156667,5.66028868,1971.6,1970.9,1.0511101]
[1771677156869,5.66028868,1971.5,1970.9,1.0511101]
[1771677157168,1.64793461,1971.7,1970.9,1.0511101]
[1771677157370,5.66015062,1971.6,1970.9,1.0511101]
[1771677157669,5.66015062,1971.5,1970.9,1.0511101]
[1771677157863,1.64793461,1971.7,1970.9,1.0511101]
[1771677158063,5.66003927,1971.6,1970.9,1.0511101]
[1771677158263,5.66003927,1971.5,1970.9,1.0511101]
[1771677158568,1.64793461,1971.7,1970.9,1.0511101]
[1771677158766,5.65999932,1971.6,1970.9,1.0511101]
[1771677158966,5.65999932,1971.5,1970.9,1.0511101]
[1771677159170,1.64793461,1971.7,1970.9,1.0511101]
[1771677159371,5.65998081,1971.6,1970.9,1.0511101]
[1771677159560,5.65998081,1971.5,1970.9,1.0511101]
[1771677159764,1.64793461,1971.7,1970.9,1.0511101]
[1771677159966,5.65997558,1971.6,1970.9,1.0511101]
[1771677160164,5.65997558,1971.5,1970.9,1.0511101]
[1771677160367,1.64793461,1971.7,1970.9,1.0511101]
[1771677160668,5.6599396,1971.6,1970.9,1.0511101]
[1771677160868,5.6599396,1971.5,1970.9,1.0511101]
[1771677161064,1.64793461,1971.5,1970.9,1.0511101]
[1771677162673,1.64793461,1971.6,1970.9,1.0511101]
[1771677162873,5.65939411,1971.5,1970.9,1.0511101]
[1771677163074,1.64793461,1971.6,1970.9,1.0511101]
[1771677163369,5.65928064,1971.5,1970.9,1.0511101]
[1771677163672,1.64793461,1971.6,1970.9,1.0511101]
[1771677163874,5.65928164,1971.5,1970.9,1.0511101]
[1771677164074,1.64793461,1971.6,1970.9,1.0511101]
[1771677164272,5.65732713,1971.5,1970.9,1.0511101]
[1771677164473,1.64793461,1971.6,1970.9,1.0511101]
[1771677169668,5.65570885,1971.5,1970.9,1.0511101]
[1771677169873,1.64793461,1971.4,1970.9,0.00439166]
[1771677172177,4.22100931,1971.7,1970.9,0.00439166]
[1771677172476,1.64793461,1971.5,1970.9,1.04244892]
[1771677173376,5.66216009,1971.4,1970.9,1.04244892]
[1771677173577,1.64793461,1971.5,1970.9,1.04244892]
[1771677173779,5.66215971,1971.4,1970.9,1.04244892]
[1771677173980,1.64793461,1971.5,1970.9,1.04244892]
[1771677174179,5.66216075,1971.4,1970.9,1.04244892]
[1771677174380,1.64793461,1971.5,1970.9,1.04244892]
[1771677174579,5.6665936,1971.4,1970.9,1.04244892]
[1771677174881,1.64793461,1971.5,1970.9,1.04244892]
[1771677175179,5.66659177,1971.4,1970.9,1.04244892]
[1771677175380,1.64793461,1971.5,1970.9,1.04244892]
[1771677175575,5.66726325,1971.4,1970.9,1.04244892]
[1771677175779,1.64793461,1971.5,1970.9,1.04244892]
[1771677175978,5.66726256,1971.4,1970.9,1.04244892]
[1771677176177,1.64793461,1971.5,1970.9,1.04244892]
[1771677176381,5.6681057,1971.4,1970.9,1.04244892]
[1771677176583,1.64793461,1971.5,1970.9,0.00439166]
[1771677176778,5.66795013,1971.4,1970.9,0.00439166]
[1771677176978,5.66795013,1971.3,1970.9,0.00439166]
[1771677177179,1.64793461,1971.5,1970.9,0.00439166]
[1771677177380,5.6684396,1971.4,1970.9,1.04477708]
[1771677177579,5.6684396,1971.3,1970.9,1.04477708]
[1771677177779,1.64793461,1971.5,1970.9,1.04477708]
[1771677177980,5.68071021,1971.4,1970.9,1.04477708]
[1771677178180,5.68071021,1971.3,1970.9,1.04477708]
[1771677178385,1.64793461,1971.5,1970.9,1.04477708]
[1771677178586,5.68128903,1971.4,1970.9,1.04477708]
[1771677178786,5.68128903,1971.3,1970.9,1.04477708]
[1771677178979,1.64793461,1971.5,1970.9,1.04477708]
[1771677179179,5.69356192,1971.4,1970.9,1.04477708]
[1771677179474,5.69356192,1971.3,1970.9,1.04477708]
[1771677179677,1.64793461,1971.5,1970.9,1.04477708]
[1771677179877,5.69358389,1971.4,1970.9,1.04477708]
[1771677180080,5.69358389,1971.3,1970.9,1.04477708]
[1771677180275,4.22100931,1971.6,1970.9,1.04477708]
[1771677180686,9.91422428,1971.6,1970.9,1.04477708]
[1771677180886,5.69321497,1971.5,1970.9,1.04477708]
[1771677181088,5.69321497,1971.4,1970.9,1.04477708]
[1771677181283,5.69321497,1971.3,1970.9,1.04477708]
[1771677181582,4.22100931,1971.6,1970.9,1.04477708]
[1771677182489,9.91495137,1971.6,1970.9,1.04477708]
[1771677182788,5.69394206,1971.5,1970.9,1.04477708]
[1771677182988,5.69394206,1971.4,1970.9,1.04477708]
[1771677183184,5.69394206,1971.3,1970.9,1.04477708]
[1771677183390,4.22100931,1971.6,1970.9,1.04477708]
[1771677187788,9.9160668,1971.6,1970.6,1.05027353]
[1771677188788,9.9160668,1971.6,1970.6,1.05487084]
[1771677189093,11.56396418,1971.5,1970.6,1.05487084]
[1771677189288,5.69505749,1971.4,1970.6,1.05487084]
[1771677192395,5.69505749,1971.3,1970.6,1.05487084]
[1771677192694,4.22100931,1971.5,1970.6,1.05487084]
[1771677192695,5.69505749,1971.2,1970.6,1.05487084]
[1771677192891,4.22100931,1971.5,1970.6,1.05487084]
[1771677198100,5.70693046,1971.4,1970.6,1.05487084]
[1771677198300,5.70693046,1971.3,1970.6,1.05487084]
[1771677198501,4.22100931,1971.6,1970.6,1.05487084]
[1771677199195,9.93020264,1971.6,1970.6,1.05487084]
[1771677201701,5.70919333,1971.5,1970.6,1.05487084]
[1771677201902,5.70919333,1971.4,1970.6,1.05487084]
[1771677202102,4.22100931,1971.6,1970.6,1.05487084]
[1771677202300,5.70997017,1971.5,1970.6,1.05487084]
[1771677202500,5.70997017,1971.4,1970.6,1.05487084]
[1771677202698,4.22100931,1971.6,1970.6,1.05487084]
[1771677202898,5.70996458,1971.5,1970.6,1.05487084]
[1771677203099,5.70996458,1971.4,1970.6,1.05487084]
[1771677203299,4.22100931,1971.6,1970.6,1.05487084]
[1771677203600,10.18456735,1971.7,1970.6,1.05487084]
[1771677203801,5.70988804,1971.6,1970.8,1.04917975]
[1771677204003,5.70988804,1971.5,1970.8,1.04917975]
[1771677204305,5.70988804,1971.4,1970.8,1.04917975]
[1771677204602,5.70997565,1971.6,1970.8,1.04917975]
[1771677204796,5.70999404,1971.5,1970.8,1.04917975]
[1771677205004,4.22100931,1971.9,1970.8,1.04917975]
[1771677211109,5.86890669,1971.9,1970.8,1.04917975]
[1771677213110,4.22100931,1971.9,1970.8,1.04917975]
[1771677214313,4.22100931,1971.7,1970.8,1.04917975]
[1771677215408,4.22100931,1971.8,1970.8,1.04917975]
[1771677216416,4.22100931,1971.9,1970.8,1.04917975]
[1771677225326,4.22100931,1972.0,1971.1,1.04887473]
[1771677226524,4.22666949,1972.1,1971.1,1.04887473]
[1771677226724,0.00566018,1972.1,1971.1,1.04887473]
[1771677234130,0.00566018,1972.1,1971.4,1.05378524]
[1771677238634,0.00566018,1972.1,1971.1,1.05716762]
[1771677240035,0.00566018,1972.1,1971.4,1.05716762]
[1771677241037,0.00566018,1972.1,1971.6,1.05682459]
[1771677243533,0.00566018,1972.1,1971.5,1.64679521]
[1771677243928,0.00566018,1972.1,1971.5,2.70345355]
[1771677245138,0.00566018,1972.1,1971.6,1.05528761]
[1771677258841,5.86780452,1972.4,1971.6,1.05528761]
[1771677259042,1.64679521,1972.4,1971.8,1.05154524]
[1771677259743,1.64679521,1972.7,1971.8,1.05154524]
[1771677259942,0.00468596,1972.4,1971.8,1.05154524]
[1771677263449,1.64679521,1972.8,1972.0,1.05702696]
[1771677264450,1.65198718,1972.8,1972.0,1.06100131]
[1771677264748,1.64679521,1972.6,1972.0,1.06100131]
[1771677265848,1.65198718,1972.8,1972.0,1.06100131]
[1771677273554,1.64679521,1972.4,1972.0,1.06100131]
[1771677277266,1.64679521,1972.6,1972.0,1.06100131]
[1771677281159,1.64679521,1972.6,1972.0,0.00397435]
[1771677283776,1.64679521,1972.2,1971.7,1.069826]
[1771677284767,1.64679521,1972.2,1971.7,1.0744351]
[1771677290473,1.64679521,1972.4,1971.7,1.0744351]
[1771677294375,4.22666289,1972.6,1971.8,1.07856626]
[1771677294577,4.22666289,1972.6,1972.0,1.07856626]
[1771677294578,5.8734581,1972.6,1972.0,1.07856626]
[1771677297777,4.22666289,1972.6,1972.0,1.07856626]
[1771677302783,4.22666289,1972.7,1972.0,1.07856626]
[1771677305481,4.23185486,1972.8,1972.0,1.07856626]
[1771677306384,0.00519197,1972.8,1972.0,1.07856626]
[1771677321097,0.00519197,1972.8,1972.3,1.07776542]
[1771677321700,4.22666289,1973.3,1972.3,1.07776542]
[1771677322694,4.23162436,1973.3,1972.3,1.07776542]
[1771677324598,0.00496147,1973.3,1972.3,1.07776542]
[1771677325102,4.23162436,1973.3,1972.3,1.07776542]
[1771677327203,0.00496147,1973.3,1972.3,1.07776542]
[1771677356723,0.00496147,1973.3,1972.3,7.46581694]
[1771677357124,0.00496147,1973.3,1972.4,1.08633102]
[1771677357827,4.23162436,1973.3,1972.4,1.08633102]
[1771677361433,0.00496147,1973.3,1972.4,1.08633102]
[1771677361933,1.6500147,1973.3,1972.4,1.08633102]
[1771677363831,1.6500147,1973.3,1972.2,6.38805152]
[1771677363832,1.64505323,1972.9,1972.2,1.08830851]
[1771677364034,1.64505323,1972.7,1972.2,1.08830851]
[1771677364229,1.64505323,1972.5,1972.0,2.39630313]
[1771677364430,1.64505323,1972.5,1972.0,1.09322539]
[1771677364929,1.64505323,1972.5,1971.7,0.0046091]
[1771677364930,1.64505323,1972.3,1971.8,1.09322539]
[1771677366737,1.64505323,1972.1,1971.7,0.0046091]
[1771677366939,1.64505323,1972.1,1971.7,1.09670325]
[1771677367132,1.64505323,1972.3,1971.7,1.09670325]
[1771677367733,1.64505323,1972.1,1971.7,1.09670325]
[1771677369735,1.64505323,1972.2,1971.7,1.09670325]
[1771677371137,1.89858323,1972.7,1971.7,1.09670325]
[1771677371339,1.64505323,1972.4,1971.7,1.09670325]
[1771677373744,1.89858323,1972.7,1971.8,1.10115747]
[1771677378652,1.64505323,1972.7,1971.8,1.10115747]
[1771677385057,1.64505323,1972.7,1972.0,1.12556096]
[1771677386560,1.64505323,1973.0,1972.1,1.12560377]
[1771677386754,1.64505323,1972.9,1972.1,1.12560377]
[1771677391157,4.21839462,1972.8,1972.1,1.12560377]
[1771677392251,4.21839462,1972.7,1972.1,1.12560377]
[1771677392861,4.21839462,1972.8,1972.1,1.12560377]
[1771677400182,4.21839462,1972.7,1972.1,1.12560377]
[1771677401783,7.90948991,1973.0,1972.2,1.12767185]
[1771677401784,4.21839462,1972.8,1972.2,1.12767185]
[1771677402382,4.21839462,1972.9,1972.2,1.12767185]
[1771677402782,5.86344785,1973.0,1972.2,1.12767185]
[1771677409891,1.64505323,1972.6,1971.8,1.12421876]